Workbook

Sheet PORTFOLIO
B2: MY PORTFOLIO | D2: =TotalTitle -> Total Value of Portfolio: $49,654.10
B16: Symbol | C16: Company Name | D16: Current Price | E16: Change in Price | F16: % Change in Price | G16: Quantity | H16: Total | I16: Sector | J16: Industry | K16: Type | L16: Open
B17: MSFT | C17: Microsoft Corporation | D17: 28.15 | E17: 0.2 | F17: 0.0072 | G17: 179 | H17: =Table1[[#This Row],[Quantity]]*Table1[[#This Row],[Current Price]] -> 5038.85 | I17: Technology | J17: Software - Infrastructure | K17: Equity | L17: 27.82
B18: LNCO | C18: Linn Co | D18: 38.52 | E18: -0.26 | F18: -0.0067 | G18: 225 | H18: =Table1[[#This Row],[Quantity]]*Table1[[#This Row],[Current Price]] -> 8667 | I18: Energy | J18: Oil & Gas E&P | K18: Equity | L18: 38.8
B19: F | C19: Ford Motor Co | D19: 12.75 | E19: 0.14 | F19: 0.0111 | G19: 141 | H19: =Table1[[#This Row],[Quantity]]*Table1[[#This Row],[Current Price]] -> 1797.75 | I19: Consumer Cyclical | J19: Auto Manufacturers | K19: Equity | L19: 12.55
B20: BGSC | C20: BGS Acquisition Corp | D20: 9.94 | E20: -0.02 | F20: -0.002 | G20: 86 | H20: =Table1[[#This Row],[Quantity]]*Table1[[#This Row],[Current Price]] -> 854.84 | I20: Industrials | J20: Conglomerates | K20: Equity | L20: 9.93
B21: ADRD | C21: BLDRS Developed Markets 100 ADR Index F | D21: 21.46 | E21: 0.08 | F21: 0.0039 | G21: 300 | H21: =Table1[[#This Row],[Quantity]]*Table1[[#This Row],[Current Price]] -> 6438 | I21: Consumer Defensive | J21: Packaged Foods | K21: Fund | L21: 21.45
B22: V | C22: Visa | D22: 159.5 | E22: 1.42 | F22: 0.009 | G22: 97 | H22: =Table1[[#This Row],[Quantity]]*Table1[[#This Row],[Current Price]] -> 15471.5 | I22: Financial Services | J22: Credit Services | K22: Equity | L22: 157.76
B23: MGI | C23: MoneyGram International Inc | D23: 17.27 | E23: 0.7 | F23: 0.0422 | G23: 34 | H23: =Table1[[#This Row],[Quantity]]*Table1[[#This Row],[Current Price]] -> 587.18 | I23: Industrials | J23: Business Services | K23: Equity | L23: 16.47
B24: R | C24: Ryder System Inc | D24: 55.58 | E24: 0.15 | F24: 0.0027 | G24: 45 | H24: =Table1[[#This Row],[Quantity]]*Table1[[#This Row],[Current Price]] -> 2501.1 | I24: Industrials | J24: Rental & Leasing Services | K24: Equity | L24: 55.15
B25: JACK | C25: Jack In The Box Inc | D25: 31.79 | E25: -0.26 | F25: -0.0081 | G25: 54 | H25: =Table1[[#This Row],[Quantity]]*Table1[[#This Row],[Current Price]] -> 1716.66 | I25: Consumer Cyclical | J25: Restaurants | K25: Equity | L25: 31.97
B26: GE | C26: General Electric Co | D26: 23.27 | E26: 0.08 | F26: 0.0034 | G26: 36 | H26: =Table1[[#This Row],[Quantity]]*Table1[[#This Row],[Current Price]] -> 837.72 | I26: Industrials | J26: Diversified Industrials | K26: Equity | L26: 23.15
B27: SBUX | C27: Starbucks Corporation | D27: 55.7 | E27: 0.83 | F27: 0.0151 | G27: 100 | H27: =Table1[[#This Row],[Quantity]]*Table1[[#This Row],[Current Price]] -> 5570 | I27: Consumer Cyclical | J27: Restaurants | K27: Equity | L27: 54.77
B28: NOK | C28: Nokia Corp ADS | D28: 3.47 | E28: -0.12 | F28: -0.0334 | G28: 50 | H28: =Table1[[#This Row],[Quantity]]*Table1[[#This Row],[Current Price]] -> 173.5 | I28: Technology | J28: Communication Equipment | K28: Equity | L28: 3.48
B29: TOTAL | H29: =SUBTOTAL(109,Table1[Total]) -> 49654.1

Sheet calculations (hidden)
A1: This sheet should remain hidden. Any changes made to this sheet could result in errors in the Bing Portfolio
B6: Category Plot: | C6: =ChartOptionTitle -> Portfolio Sectors
C9: =INDEX(PORTFOLIO!$I$16:$I$137, MATCH(0, COUNTIF($C$8:C8, PORTFOLIO!$I$16:$I$137), 0)) -> Sector | D9: =COUNT(IF(LEN(D10:D19)>0,1)) -> 7
B10: =IFERROR(IF(C10=0,"",C10),"") -> Technology | C10: =INDEX(PORTFOLIO!$I$16:$I$137, MATCH(0, COUNTIF($C$8:C9, PORTFOLIO!$I$16:$I$137), 0)) -> Technology | D10: =IFERROR(IF(C10=0,"Other",C10),"") -> Technology | E10: =IF(ISERROR(C10),"",SUMIFS(Table1[Total],Table1[Sector],B10)) -> 5212.35
B11: Energy | C11: =INDEX(PORTFOLIO!$I$16:$I$137, MATCH(0, COUNTIF($C$8:C10, PORTFOLIO!$I$16:$I$137), 0)) -> Energy | D11: Energy | E11: =IF(ISERROR(C11),"",SUMIFS(Table1[Total],Table1[Sector],B11)) -> 8667
B12: Consumer Cyclical | C12: =INDEX(PORTFOLIO!$I$16:$I$137, MATCH(0, COUNTIF($C$8:C11, PORTFOLIO!$I$16:$I$137), 0)) -> Consumer Cyclical | D12: Consumer Cyclical | E12: =IF(ISERROR(C12),"",SUMIFS(Table1[Total],Table1[Sector],B12)) -> 9084.41
B13: Industrials | C13: =INDEX(PORTFOLIO!$I$16:$I$137, MATCH(0, COUNTIF($C$8:C12, PORTFOLIO!$I$16:$I$137), 0)) -> Industrials | D13: Industrials | E13: =IF(ISERROR(C13),"",SUMIFS(Table1[Total],Table1[Sector],B13)) -> 4780.84
B14: Consumer Defensive | C14: =INDEX(PORTFOLIO!$I$16:$I$137, MATCH(0, COUNTIF($C$8:C13, PORTFOLIO!$I$16:$I$137), 0)) -> Consumer Defensive | D14: Consumer Defensive | E14: =IF(ISERROR(C14),"",SUMIFS(Table1[Total],Table1[Sector],B14)) -> 6438
B15: Financial Services | C15: =INDEX(PORTFOLIO!$I$16:$I$137, MATCH(0, COUNTIF($C$8:C14, PORTFOLIO!$I$16:$I$137), 0)) -> Financial Services | D15: Financial Services | E15: =IF(ISERROR(C15),"",SUMIFS(Table1[Total],Table1[Sector],B15)) -> 15471.5
C16: =INDEX(PORTFOLIO!$I$16:$I$137, MATCH(0, COUNTIF($C$8:C15, PORTFOLIO!$I$16:$I$137), 0)) -> 0 | D16: Other | E16: =IF(ISERROR(C16),"",SUMIFS(Table1[Total],Table1[Sector],B16)) -> 0
C17: =INDEX(PORTFOLIO!$I$16:$I$137, MATCH(0, COUNTIF($C$8:C16, PORTFOLIO!$I$16:$I$137), 0)) ->  | E17: =IF(ISERROR(C17),"",SUMIFS(Table1[Total],Table1[Sector],B17)) -> 
C18: =INDEX(PORTFOLIO!$I$16:$I$137, MATCH(0, COUNTIF($C$8:C17, PORTFOLIO!$I$16:$I$137), 0)) ->  | E18: =IF(ISERROR(C18),"",SUMIFS(Table1[Total],Table1[Sector],B18)) -> 
C19: =INDEX(PORTFOLIO!$I$16:$I$137, MATCH(0, COUNTIF($C$8:C18, PORTFOLIO!$I$16:$I$137), 0)) ->  | E19: =IF(ISERROR(C19),"",SUMIFS(Table1[Total],Table1[Sector],B19)) -> 
C25: =INDEX(PORTFOLIO!$J$16:$J$137, MATCH(0, COUNTIF($C$24:C24, PORTFOLIO!$J$16:$J$137), 0)) -> Industry | D25: =COUNT(IF(LEN(D26:D35)>0,1)) -> 10
B26: =IFERROR(IF(C26=0,"",C26),"") -> Software - Infrastructure | C26: =INDEX(PORTFOLIO!$J$16:$J$137, MATCH(0, COUNTIF($C$24:C25, PORTFOLIO!$J$16:$J$137), 0)) -> Software - Infrastructure | D26: =IFERROR(IF(C26=0,"Other",C26),"") -> Software - Infrastructure | E26: =IF(ISERROR(C26),"",SUMIFS(Table1[Total],Table1[Industry],B26)) -> 5038.85
B27: Oil & Gas E&P | C27: =INDEX(PORTFOLIO!$J$16:$J$137, MATCH(0, COUNTIF($C$24:C26, PORTFOLIO!$J$16:$J$137), 0)) -> Oil & Gas E&P | D27: Oil & Gas E&P | E27: =IF(ISERROR(C27),"",SUMIFS(Table1[Total],Table1[Industry],B27)) -> 8667
B28: Auto Manufacturers | C28: =INDEX(PORTFOLIO!$J$16:$J$137, MATCH(0, COUNTIF($C$24:C27, PORTFOLIO!$J$16:$J$137), 0)) -> Auto Manufacturers | D28: Auto Manufacturers | E28: =IF(ISERROR(C28),"",SUMIFS(Table1[Total],Table1[Industry],B28)) -> 1797.75
B29: Conglomerates | C29: =INDEX(PORTFOLIO!$J$16:$J$137, MATCH(0, COUNTIF($C$24:C28, PORTFOLIO!$J$16:$J$137), 0)) -> Conglomerates | D29: Conglomerates | E29: =IF(ISERROR(C29),"",SUMIFS(Table1[Total],Table1[Industry],B29)) -> 854.84
B30: Packaged Foods | C30: =INDEX(PORTFOLIO!$J$16:$J$137, MATCH(0, COUNTIF($C$24:C29, PORTFOLIO!$J$16:$J$137), 0)) -> Packaged Foods | D30: Packaged Foods | E30: =IF(ISERROR(C30),"",SUMIFS(Table1[Total],Table1[Industry],B30)) -> 6438
B31: Credit Services | C31: =INDEX(PORTFOLIO!$J$16:$J$137, MATCH(0, COUNTIF($C$24:C30, PORTFOLIO!$J$16:$J$137), 0)) -> Credit Services | D31: Credit Services | E31: =IF(ISERROR(C31),"",SUMIFS(Table1[Total],Table1[Industry],B31)) -> 15471.5
B32: Business Services | C32: =INDEX(PORTFOLIO!$J$16:$J$137, MATCH(0, COUNTIF($C$24:C31, PORTFOLIO!$J$16:$J$137), 0)) -> Business Services | D32: Business Services | E32: =IF(ISERROR(C32),"",SUMIFS(Table1[Total],Table1[Industry],B32)) -> 587.18
B33: Rental & Leasing Services | C33: =INDEX(PORTFOLIO!$J$16:$J$137, MATCH(0, COUNTIF($C$24:C32, PORTFOLIO!$J$16:$J$137), 0)) -> Rental & Leasing Services | D33: Rental & Leasing Services | E33: =IF(ISERROR(C33),"",SUMIFS(Table1[Total],Table1[Industry],B33)) -> 2501.1
B34: Restaurants | C34: =INDEX(PORTFOLIO!$J$16:$J$137, MATCH(0, COUNTIF($C$24:C33, PORTFOLIO!$J$16:$J$137), 0)) -> Restaurants | D34: Restaurants | E34: =IF(ISERROR(C34),"",SUMIFS(Table1[Total],Table1[Industry],B34)) -> 7286.66
B35: Diversified Industrials | C35: =INDEX(PORTFOLIO!$J$16:$J$137, MATCH(0, COUNTIF($C$24:C34, PORTFOLIO!$J$16:$J$137), 0)) -> Diversified Industrials | D35: Diversified Industrials | E35: =IF(ISERROR(C35),"",SUMIFS(Table1[Total],Table1[Industry],B35)) -> 837.72
C41: =INDEX(PORTFOLIO!$K$16:$K$28, MATCH(0, COUNTIF($C$40:C40, PORTFOLIO!$K$16:$K$137), 0)) -> Type | D41: =COUNT(IF(LEN(D42:D51)>0,1)) -> 2
B42: =IFERROR(IF(C42=0,"",C42),"") -> Equity | C42: Equity | D42: =IFERROR(IF(C42=0,"Other",C42),"") -> Equity | E42: =IF(ISERROR(C42),"",SUMIFS(Table1[Total],Table1[Type],B42)) -> 43216.1
B43: Fund | C43: Fund | D43: =IFERROR(IF(C43=0,"Other",C43),"") -> Fund | E43: =IF(ISERROR(C43),"",SUMIFS(Table1[Total],Table1[Type],B43)) -> 6438
C44: =INDEX(PORTFOLIO!$K$16:$K$137, MATCH(0, COUNTIF($C$40:C43, PORTFOLIO!$K$16:$K$137), 0)) -> 0 | D44: =IFERROR(IF(C44=0,"",C44),"") ->  | E44: =IF(ISERROR(C44),"",SUMIFS(Table1[Total],Table1[Type],B44)) -> 0
C45: =INDEX(PORTFOLIO!$K$16:$K$137, MATCH(0, COUNTIF($C$40:C44, PORTFOLIO!$K$16:$K$137), 0)) ->  | D45: =IFERROR(IF(C45=0,"Other",C45),"") ->  | E45: =IF(ISERROR(C45),"",SUMIFS(Table1[Total],Table1[Type],B45)) -> 
C46: =INDEX(PORTFOLIO!$K$16:$K$137, MATCH(0, COUNTIF($C$40:C45, PORTFOLIO!$K$16:$K$137), 0)) ->  | E46: =IF(ISERROR(C46),"",SUMIFS(Table1[Total],Table1[Type],B46)) -> 
C47: =INDEX(PORTFOLIO!$K$16:$K$137, MATCH(0, COUNTIF($C$40:C46, PORTFOLIO!$K$16:$K$137), 0)) ->  | E47: =IF(ISERROR(C47),"",SUMIFS(Table1[Total],Table1[Type],B47)) -> 
C48: =INDEX(PORTFOLIO!$K$16:$K$137, MATCH(0, COUNTIF($C$40:C47, PORTFOLIO!$K$16:$K$137), 0)) ->  | E48: =IF(ISERROR(C48),"",SUMIFS(Table1[Total],Table1[Type],B48)) -> 
C49: =INDEX(PORTFOLIO!$K$16:$K$137, MATCH(0, COUNTIF($C$40:C48, PORTFOLIO!$K$16:$K$137), 0)) ->  | E49: =IF(ISERROR(C49),"",SUMIFS(Table1[Total],Table1[Type],B49)) -> 
C50: =INDEX(PORTFOLIO!$K$16:$K$137, MATCH(0, COUNTIF($C$40:C49, PORTFOLIO!$K$16:$K$137), 0)) ->  | E50: =IF(ISERROR(C50),"",SUMIFS(Table1[Total],Table1[Type],B50)) -> 
C51: =INDEX(PORTFOLIO!$K$16:$K$137, MATCH(0, COUNTIF($C$40:C50, PORTFOLIO!$K$16:$K$137), 0)) ->  | E51: =IF(ISERROR(C51),"",SUMIFS(Table1[Total],Table1[Type],B51)) -> 
H54: =IF(COUNT(IF(LEN(H57:H156)>0,1))<11,H56,"Top 10 of " & COUNT(IF(LEN(H57:H156)>0,1))) & " Positions" -> Top 10 of 12 Positions
H56: =MIN(COUNT(IF(LEN(H57:H156)>0,1)),10) -> 10
F57: 1 | G57: =INDEX(PORTFOLIO!$B$17:$B$215,$F57) -> MSFT | H57: =REPT(G57,(G57<>"total")*(G57<>0))&REPT("No Positions",G57=0) -> MSFT | I57: =IF((G57<>"total")*(G57<>0),INDEX(PORTFOLIO!$H$17:$H$215,$F57),0) -> 5038.85 | J57: =LARGE($I$57:$I$156,ROWS($J$57:$J57)) -> 15471.5 | K57: =MATCH(J57,$I$57:$I$156,0) -> 6 | L57: =INDEX($H$57:$H$156,K57) -> V
F58: 2 | G58: =INDEX(PORTFOLIO!$B$17:$B$215,$F58) -> LNCO | H58: =REPT(G58,(G58<>"total")*(G58<>0)) -> LNCO | I58: =IF((G58<>"total")*(G58<>0),INDEX(PORTFOLIO!$H$17:$H$215,$F58),0) -> 8667 | J58: =LARGE($I$57:$I$156,ROWS($J$57:$J58)) -> 8667 | K58: =MATCH(J58,$I$57:$I$156,0) -> 2 | L58: =INDEX($H$57:$H$156,K58) -> LNCO
F59: 3 | G59: =INDEX(PORTFOLIO!$B$17:$B$215,$F59) -> F | H59: F | I59: =IF((G59<>"total")*(G59<>0),INDEX(PORTFOLIO!$H$17:$H$215,$F59),0) -> 1797.75 | J59: =LARGE($I$57:$I$156,ROWS($J$57:$J59)) -> 6438 | K59: 5 | L59: ADRD
F60: 4 | G60: =INDEX(PORTFOLIO!$B$17:$B$215,$F60) -> BGSC | H60: BGSC | I60: =IF((G60<>"total")*(G60<>0),INDEX(PORTFOLIO!$H$17:$H$215,$F60),0) -> 854.84 | J60: =LARGE($I$57:$I$156,ROWS($J$57:$J60)) -> 5570 | K60: 11 | L60: SBUX
F61: 5 | G61: =INDEX(PORTFOLIO!$B$17:$B$215,$F61) -> ADRD | H61: ADRD | I61: =IF((G61<>"total")*(G61<>0),INDEX(PORTFOLIO!$H$17:$H$215,$F61),0) -> 6438 | J61: =LARGE($I$57:$I$156,ROWS($J$57:$J61)) -> 5038.85 | K61: 1 | L61: MSFT
F62: 6 | G62: =INDEX(PORTFOLIO!$B$17:$B$215,$F62) -> V | H62: V | I62: =IF((G62<>"total")*(G62<>0),INDEX(PORTFOLIO!$H$17:$H$215,$F62),0) -> 15471.5 | J62: =LARGE($I$57:$I$156,ROWS($J$57:$J62)) -> 2501.1 | K62: 8 | L62: R
F63: 7 | G63: =INDEX(PORTFOLIO!$B$17:$B$215,$F63) -> MGI | H63: MGI | I63: =IF((G63<>"total")*(G63<>0),INDEX(PORTFOLIO!$H$17:$H$215,$F63),0) -> 587.18 | J63: =LARGE($I$57:$I$156,ROWS($J$57:$J63)) -> 1797.75 | K63: 3 | L63: F
F64: 8 | G64: =INDEX(PORTFOLIO!$B$17:$B$215,$F64) -> R | H64: R | I64: =IF((G64<>"total")*(G64<>0),INDEX(PORTFOLIO!$H$17:$H$215,$F64),0) -> 2501.1 | J64: =LARGE($I$57:$I$156,ROWS($J$57:$J64)) -> 1716.66 | K64: 9 | L64: JACK
F65: 9 | G65: =INDEX(PORTFOLIO!$B$17:$B$215,$F65) -> JACK | H65: JACK | I65: =IF((G65<>"total")*(G65<>0),INDEX(PORTFOLIO!$H$17:$H$215,$F65),0) -> 1716.66 | J65: =LARGE($I$57:$I$156,ROWS($J$57:$J65)) -> 854.84 | K65: 4 | L65: BGSC
F66: 10 | G66: =INDEX(PORTFOLIO!$B$17:$B$215,$F66) -> GE | H66: GE | I66: =IF((G66<>"total")*(G66<>0),INDEX(PORTFOLIO!$H$17:$H$215,$F66),0) -> 837.72 | J66: =LARGE($I$57:$I$156,ROWS($J$57:$J66)) -> 837.72 | K66: 10 | L66: GE
F67: 11 | G67: =INDEX(PORTFOLIO!$B$17:$B$215,$F67) -> SBUX | H67: SBUX | I67: =IF((G67<>"total")*(G67<>0),INDEX(PORTFOLIO!$H$17:$H$215,$F67),0) -> 5570 | J67: =LARGE($I$57:$I$156,ROWS($J$57:$J67)) -> 587.18 | K67: 7 | L67: MGI
F68: 12 | G68: =INDEX(PORTFOLIO!$B$17:$B$215,$F68) -> NOK | H68: NOK | I68: =IF((G68<>"total")*(G68<>0),INDEX(PORTFOLIO!$H$17:$H$215,$F68),0) -> 173.5 | J68: =LARGE($I$57:$I$156,ROWS($J$57:$J68)) -> 173.5 | K68: 12 | L68: NOK
F69: 13 | G69: =INDEX(PORTFOLIO!$B$17:$B$215,$F69) -> TOTAL | I69: =IF((G69<>"total")*(G69<>0),INDEX(PORTFOLIO!$H$17:$H$215,$F69),0) -> 0 | J69: =LARGE($I$57:$I$156,ROWS($J$57:$J69)) -> 0 | K69: 13
F70: 14 | G70: =INDEX(PORTFOLIO!$B$17:$B$215,$F70) -> 0 | I70: =IF((G70<>"total")*(G70<>0),INDEX(PORTFOLIO!$H$17:$H$215,$F70),0) -> 0 | J70: =LARGE($I$57:$I$156,ROWS($J$57:$J70)) -> 0 | K70: 13
F71: 15 | G71: =INDEX(PORTFOLIO!$B$17:$B$215,$F71) -> 0 | I71: =IF((G71<>"total")*(G71<>0),INDEX(PORTFOLIO!$H$17:$H$215,$F71),0) -> 0 | J71: =LARGE($I$57:$I$156,ROWS($J$57:$J71)) -> 0 | K71: 13
F72: 16 | G72: =INDEX(PORTFOLIO!$B$17:$B$215,$F72) -> 0 | I72: =IF((G72<>"total")*(G72<>0),INDEX(PORTFOLIO!$H$17:$H$215,$F72),0) -> 0 | J72: =LARGE($I$57:$I$156,ROWS($J$57:$J72)) -> 0 | K72: 13
F73: 17 | G73: =INDEX(PORTFOLIO!$B$17:$B$215,$F73) -> 0 | I73: =IF((G73<>"total")*(G73<>0),INDEX(PORTFOLIO!$H$17:$H$215,$F73),0) -> 0 | J73: =LARGE($I$57:$I$156,ROWS($J$57:$J73)) -> 0 | K73: 13
F74: 18 | G74: =INDEX(PORTFOLIO!$B$17:$B$215,$F74) -> 0 | I74: =IF((G74<>"total")*(G74<>0),INDEX(PORTFOLIO!$H$17:$H$215,$F74),0) -> 0 | J74: =LARGE($I$57:$I$156,ROWS($J$57:$J74)) -> 0 | K74: 13
F75: 19 | G75: =INDEX(PORTFOLIO!$B$17:$B$215,$F75) -> 0 | I75: =IF((G75<>"total")*(G75<>0),INDEX(PORTFOLIO!$H$17:$H$215,$F75),0) -> 0 | J75: =LARGE($I$57:$I$156,ROWS($J$57:$J75)) -> 0 | K75: 13
F76: 20 | G76: =INDEX(PORTFOLIO!$B$17:$B$215,$F76) -> 0 | I76: =IF((G76<>"total")*(G76<>0),INDEX(PORTFOLIO!$H$17:$H$215,$F76),0) -> 0 | J76: =LARGE($I$57:$I$156,ROWS($J$57:$J76)) -> 0 | K76: 13
F77: 21 | G77: =INDEX(PORTFOLIO!$B$17:$B$215,$F77) -> 0 | I77: =IF((G77<>"total")*(G77<>0),INDEX(PORTFOLIO!$H$17:$H$215,$F77),0) -> 0 | J77: =LARGE($I$57:$I$156,ROWS($J$57:$J77)) -> 0 | K77: 13
F78: 22 | G78: =INDEX(PORTFOLIO!$B$17:$B$215,$F78) -> 0 | I78: =IF((G78<>"total")*(G78<>0),INDEX(PORTFOLIO!$H$17:$H$215,$F78),0) -> 0 | J78: =LARGE($I$57:$I$156,ROWS($J$57:$J78)) -> 0 | K78: 13
F79: 23 | G79: =INDEX(PORTFOLIO!$B$17:$B$215,$F79) -> 0 | I79: =IF((G79<>"total")*(G79<>0),INDEX(PORTFOLIO!$H$17:$H$215,$F79),0) -> 0 | J79: =LARGE($I$57:$I$156,ROWS($J$57:$J79)) -> 0 | K79: 13
F80: 24 | G80: =INDEX(PORTFOLIO!$B$17:$B$215,$F80) -> 0 | I80: =IF((G80<>"total")*(G80<>0),INDEX(PORTFOLIO!$H$17:$H$215,$F80),0) -> 0 | J80: =LARGE($I$57:$I$156,ROWS($J$57:$J80)) -> 0 | K80: 13
F81: 25 | G81: =INDEX(PORTFOLIO!$B$17:$B$215,$F81) -> 0 | I81: =IF((G81<>"total")*(G81<>0),INDEX(PORTFOLIO!$H$17:$H$215,$F81),0) -> 0 | J81: =LARGE($I$57:$I$156,ROWS($J$57:$J81)) -> 0 | K81: 13
F82: 26 | G82: =INDEX(PORTFOLIO!$B$17:$B$215,$F82) -> 0 | I82: =IF((G82<>"total")*(G82<>0),INDEX(PORTFOLIO!$H$17:$H$215,$F82),0) -> 0 | J82: =LARGE($I$57:$I$156,ROWS($J$57:$J82)) -> 0 | K82: 13
F83: 27 | G83: =INDEX(PORTFOLIO!$B$17:$B$215,$F83) -> 0 | I83: =IF((G83<>"total")*(G83<>0),INDEX(PORTFOLIO!$H$17:$H$215,$F83),0) -> 0 | J83: =LARGE($I$57:$I$156,ROWS($J$57:$J83)) -> 0 | K83: 13
F84: 28 | G84: =INDEX(PORTFOLIO!$B$17:$B$215,$F84) -> 0 | I84: =IF((G84<>"total")*(G84<>0),INDEX(PORTFOLIO!$H$17:$H$215,$F84),0) -> 0 | J84: =LARGE($I$57:$I$156,ROWS($J$57:$J84)) -> 0 | K84: 13
F85: 29 | G85: =INDEX(PORTFOLIO!$B$17:$B$215,$F85) -> 0 | I85: =IF((G85<>"total")*(G85<>0),INDEX(PORTFOLIO!$H$17:$H$215,$F85),0) -> 0 | J85: =LARGE($I$57:$I$156,ROWS($J$57:$J85)) -> 0 | K85: 13
F86: 30 | G86: =INDEX(PORTFOLIO!$B$17:$B$215,$F86) -> 0 | I86: =IF((G86<>"total")*(G86<>0),INDEX(PORTFOLIO!$H$17:$H$215,$F86),0) -> 0 | J86: =LARGE($I$57:$I$156,ROWS($J$57:$J86)) -> 0 | K86: 13
F87: 31 | G87: =INDEX(PORTFOLIO!$B$17:$B$215,$F87) -> 0 | I87: =IF((G87<>"total")*(G87<>0),INDEX(PORTFOLIO!$H$17:$H$215,$F87),0) -> 0 | J87: =LARGE($I$57:$I$156,ROWS($J$57:$J87)) -> 0 | K87: 13
F88: 32 | G88: =INDEX(PORTFOLIO!$B$17:$B$215,$F88) -> 0 | I88: =IF((G88<>"total")*(G88<>0),INDEX(PORTFOLIO!$H$17:$H$215,$F88),0) -> 0 | J88: =LARGE($I$57:$I$156,ROWS($J$57:$J88)) -> 0 | K88: 13
F89: 33 | G89: =INDEX(PORTFOLIO!$B$17:$B$215,$F89) -> 0 | I89: =IF((G89<>"total")*(G89<>0),INDEX(PORTFOLIO!$H$17:$H$215,$F89),0) -> 0 | J89: =LARGE($I$57:$I$156,ROWS($J$57:$J89)) -> 0 | K89: 13
F90: 34 | G90: =INDEX(PORTFOLIO!$B$17:$B$215,$F90) -> 0 | I90: =IF((G90<>"total")*(G90<>0),INDEX(PORTFOLIO!$H$17:$H$215,$F90),0) -> 0 | J90: =LARGE($I$57:$I$156,ROWS($J$57:$J90)) -> 0 | K90: 13
F91: 35 | G91: =INDEX(PORTFOLIO!$B$17:$B$215,$F91) -> 0 | I91: =IF((G91<>"total")*(G91<>0),INDEX(PORTFOLIO!$H$17:$H$215,$F91),0) -> 0 | J91: =LARGE($I$57:$I$156,ROWS($J$57:$J91)) -> 0 | K91: 13
F92: 36 | G92: =INDEX(PORTFOLIO!$B$17:$B$215,$F92) -> 0 | I92: =IF((G92<>"total")*(G92<>0),INDEX(PORTFOLIO!$H$17:$H$215,$F92),0) -> 0 | J92: =LARGE($I$57:$I$156,ROWS($J$57:$J92)) -> 0 | K92: 13
F93: 37 | G93: =INDEX(PORTFOLIO!$B$17:$B$215,$F93) -> 0 | I93: =IF((G93<>"total")*(G93<>0),INDEX(PORTFOLIO!$H$17:$H$215,$F93),0) -> 0 | J93: =LARGE($I$57:$I$156,ROWS($J$57:$J93)) -> 0 | K93: 13
F94: 38 | G94: =INDEX(PORTFOLIO!$B$17:$B$215,$F94) -> 0 | I94: =IF((G94<>"total")*(G94<>0),INDEX(PORTFOLIO!$H$17:$H$215,$F94),0) -> 0 | J94: =LARGE($I$57:$I$156,ROWS($J$57:$J94)) -> 0 | K94: 13
F95: 39 | G95: =INDEX(PORTFOLIO!$B$17:$B$215,$F95) -> 0 | I95: =IF((G95<>"total")*(G95<>0),INDEX(PORTFOLIO!$H$17:$H$215,$F95),0) -> 0 | J95: =LARGE($I$57:$I$156,ROWS($J$57:$J95)) -> 0 | K95: 13
F96: 40 | G96: =INDEX(PORTFOLIO!$B$17:$B$215,$F96) -> 0 | I96: =IF((G96<>"total")*(G96<>0),INDEX(PORTFOLIO!$H$17:$H$215,$F96),0) -> 0 | J96: =LARGE($I$57:$I$156,ROWS($J$57:$J96)) -> 0 | K96: 13
F97: 41 | G97: =INDEX(PORTFOLIO!$B$17:$B$215,$F97) -> 0 | I97: =IF((G97<>"total")*(G97<>0),INDEX(PORTFOLIO!$H$17:$H$215,$F97),0) -> 0 | J97: =LARGE($I$57:$I$156,ROWS($J$57:$J97)) -> 0 | K97: 13
F98: 42 | G98: =INDEX(PORTFOLIO!$B$17:$B$215,$F98) -> 0 | I98: =IF((G98<>"total")*(G98<>0),INDEX(PORTFOLIO!$H$17:$H$215,$F98),0) -> 0 | J98: =LARGE($I$57:$I$156,ROWS($J$57:$J98)) -> 0 | K98: 13
F99: 43 | G99: =INDEX(PORTFOLIO!$B$17:$B$215,$F99) -> 0 | I99: =IF((G99<>"total")*(G99<>0),INDEX(PORTFOLIO!$H$17:$H$215,$F99),0) -> 0 | J99: =LARGE($I$57:$I$156,ROWS($J$57:$J99)) -> 0 | K99: 13
F100: 44 | G100: =INDEX(PORTFOLIO!$B$17:$B$215,$F100) -> 0 | I100: =IF((G100<>"total")*(G100<>0),INDEX(PORTFOLIO!$H$17:$H$215,$F100),0) -> 0 | J100: =LARGE($I$57:$I$156,ROWS($J$57:$J100)) -> 0 | K100: 13
F101: 45 | G101: =INDEX(PORTFOLIO!$B$17:$B$215,$F101) -> 0 | I101: =IF((G101<>"total")*(G101<>0),INDEX(PORTFOLIO!$H$17:$H$215,$F101),0) -> 0 | J101: =LARGE($I$57:$I$156,ROWS($J$57:$J101)) -> 0 | K101: 13
F102: 46 | G102: =INDEX(PORTFOLIO!$B$17:$B$215,$F102) -> 0 | I102: =IF((G102<>"total")*(G102<>0),INDEX(PORTFOLIO!$H$17:$H$215,$F102),0) -> 0 | J102: =LARGE($I$57:$I$156,ROWS($J$57:$J102)) -> 0 | K102: 13
F103: 47 | G103: =INDEX(PORTFOLIO!$B$17:$B$215,$F103) -> 0 | I103: =IF((G103<>"total")*(G103<>0),INDEX(PORTFOLIO!$H$17:$H$215,$F103),0) -> 0 | J103: =LARGE($I$57:$I$156,ROWS($J$57:$J103)) -> 0 | K103: 13
F104: 48 | G104: =INDEX(PORTFOLIO!$B$17:$B$215,$F104) -> 0 | I104: =IF((G104<>"total")*(G104<>0),INDEX(PORTFOLIO!$H$17:$H$215,$F104),0) -> 0 | J104: =LARGE($I$57:$I$156,ROWS($J$57:$J104)) -> 0 | K104: 13
F105: 49 | G105: =INDEX(PORTFOLIO!$B$17:$B$215,$F105) -> 0 | I105: =IF((G105<>"total")*(G105<>0),INDEX(PORTFOLIO!$H$17:$H$215,$F105),0) -> 0 | J105: =LARGE($I$57:$I$156,ROWS($J$57:$J105)) -> 0 | K105: 13
F106: 50 | G106: =INDEX(PORTFOLIO!$B$17:$B$215,$F106) -> 0 | I106: =IF((G106<>"total")*(G106<>0),INDEX(PORTFOLIO!$H$17:$H$215,$F106),0) -> 0 | J106: =LARGE($I$57:$I$156,ROWS($J$57:$J106)) -> 0 | K106: 13
F107: 51 | G107: =INDEX(PORTFOLIO!$B$17:$B$215,$F107) -> 0 | H107: =REPT(G107,(G107<>"total")*(G107<>0)) ->  | I107: =IF((G107<>"total")*(G107<>0),INDEX(PORTFOLIO!$H$17:$H$215,$F107),0) -> 0 | J107: =LARGE($I$57:$I$156,ROWS($J$57:$J107)) -> 0 | K107: 13
F108: 52 | G108: =INDEX(PORTFOLIO!$B$17:$B$215,$F108) -> 0 | H108: =REPT(G108,(G108<>"total")*(G108<>0)) ->  | I108: =IF((G108<>"total")*(G108<>0),INDEX(PORTFOLIO!$H$17:$H$215,$F108),0) -> 0 | J108: =LARGE($I$57:$I$156,ROWS($J$57:$J108)) -> 0 | K108: 13
F109: 53 | G109: =INDEX(PORTFOLIO!$B$17:$B$215,$F109) -> 0 | I109: =IF((G109<>"total")*(G109<>0),INDEX(PORTFOLIO!$H$17:$H$215,$F109),0) -> 0 | J109: =LARGE($I$57:$I$156,ROWS($J$57:$J109)) -> 0 | K109: 13
F110: 54 | G110: =INDEX(PORTFOLIO!$B$17:$B$215,$F110) -> 0 | I110: =IF((G110<>"total")*(G110<>0),INDEX(PORTFOLIO!$H$17:$H$215,$F110),0) -> 0 | J110: =LARGE($I$57:$I$156,ROWS($J$57:$J110)) -> 0 | K110: 13
F111: 55 | G111: =INDEX(PORTFOLIO!$B$17:$B$215,$F111) -> 0 | I111: =IF((G111<>"total")*(G111<>0),INDEX(PORTFOLIO!$H$17:$H$215,$F111),0) -> 0 | J111: =LARGE($I$57:$I$156,ROWS($J$57:$J111)) -> 0 | K111: 13
F112: 56 | G112: =INDEX(PORTFOLIO!$B$17:$B$215,$F112) -> 0 | I112: =IF((G112<>"total")*(G112<>0),INDEX(PORTFOLIO!$H$17:$H$215,$F112),0) -> 0 | J112: =LARGE($I$57:$I$156,ROWS($J$57:$J112)) -> 0 | K112: 13
F113: 57 | G113: =INDEX(PORTFOLIO!$B$17:$B$215,$F113) -> 0 | I113: =IF((G113<>"total")*(G113<>0),INDEX(PORTFOLIO!$H$17:$H$215,$F113),0) -> 0 | J113: =LARGE($I$57:$I$156,ROWS($J$57:$J113)) -> 0 | K113: 13
F114: 58 | G114: =INDEX(PORTFOLIO!$B$17:$B$215,$F114) -> 0 | I114: =IF((G114<>"total")*(G114<>0),INDEX(PORTFOLIO!$H$17:$H$215,$F114),0) -> 0 | J114: =LARGE($I$57:$I$156,ROWS($J$57:$J114)) -> 0 | K114: 13
F115: 59 | G115: =INDEX(PORTFOLIO!$B$17:$B$215,$F115) -> 0 | I115: =IF((G115<>"total")*(G115<>0),INDEX(PORTFOLIO!$H$17:$H$215,$F115),0) -> 0 | J115: =LARGE($I$57:$I$156,ROWS($J$57:$J115)) -> 0 | K115: 13
F116: 60 | G116: =INDEX(PORTFOLIO!$B$17:$B$215,$F116) -> 0 | I116: =IF((G116<>"total")*(G116<>0),INDEX(PORTFOLIO!$H$17:$H$215,$F116),0) -> 0 | J116: =LARGE($I$57:$I$156,ROWS($J$57:$J116)) -> 0 | K116: 13
F117: 61 | G117: =INDEX(PORTFOLIO!$B$17:$B$215,$F117) -> 0 | I117: =IF((G117<>"total")*(G117<>0),INDEX(PORTFOLIO!$H$17:$H$215,$F117),0) -> 0 | J117: =LARGE($I$57:$I$156,ROWS($J$57:$J117)) -> 0 | K117: 13
F118: 62 | G118: =INDEX(PORTFOLIO!$B$17:$B$215,$F118) -> 0 | I118: =IF((G118<>"total")*(G118<>0),INDEX(PORTFOLIO!$H$17:$H$215,$F118),0) -> 0 | J118: =LARGE($I$57:$I$156,ROWS($J$57:$J118)) -> 0 | K118: 13
F119: 63 | G119: =INDEX(PORTFOLIO!$B$17:$B$215,$F119) -> 0 | I119: =IF((G119<>"total")*(G119<>0),INDEX(PORTFOLIO!$H$17:$H$215,$F119),0) -> 0 | J119: =LARGE($I$57:$I$156,ROWS($J$57:$J119)) -> 0 | K119: 13
F120: 64 | G120: =INDEX(PORTFOLIO!$B$17:$B$215,$F120) -> 0 | I120: =IF((G120<>"total")*(G120<>0),INDEX(PORTFOLIO!$H$17:$H$215,$F120),0) -> 0 | J120: =LARGE($I$57:$I$156,ROWS($J$57:$J120)) -> 0 | K120: 13
F121: 65 | G121: =INDEX(PORTFOLIO!$B$17:$B$215,$F121) -> 0 | I121: =IF((G121<>"total")*(G121<>0),INDEX(PORTFOLIO!$H$17:$H$215,$F121),0) -> 0 | J121: =LARGE($I$57:$I$156,ROWS($J$57:$J121)) -> 0 | K121: 13
F122: 66 | G122: =INDEX(PORTFOLIO!$B$17:$B$215,$F122) -> 0 | I122: =IF((G122<>"total")*(G122<>0),INDEX(PORTFOLIO!$H$17:$H$215,$F122),0) -> 0 | J122: =LARGE($I$57:$I$156,ROWS($J$57:$J122)) -> 0 | K122: =MATCH(J122,$I$57:$I$156,0) -> 13 | L122: =INDEX($H$57:$H$156,K122) -> 
F123: 67 | G123: =INDEX(PORTFOLIO!$B$17:$B$215,$F123) -> 0 | I123: =IF((G123<>"total")*(G123<>0),INDEX(PORTFOLIO!$H$17:$H$215,$F123),0) -> 0 | J123: =LARGE($I$57:$I$156,ROWS($J$57:$J123)) -> 0 | K123: 13
F124: 68 | G124: =INDEX(PORTFOLIO!$B$17:$B$215,$F124) -> 0 | I124: =IF((G124<>"total")*(G124<>0),INDEX(PORTFOLIO!$H$17:$H$215,$F124),0) -> 0 | J124: =LARGE($I$57:$I$156,ROWS($J$57:$J124)) -> 0 | K124: 13
F125: 69 | G125: =INDEX(PORTFOLIO!$B$17:$B$215,$F125) -> 0 | I125: =IF((G125<>"total")*(G125<>0),INDEX(PORTFOLIO!$H$17:$H$215,$F125),0) -> 0 | J125: =LARGE($I$57:$I$156,ROWS($J$57:$J125)) -> 0 | K125: 13
F126: 70 | G126: =INDEX(PORTFOLIO!$B$17:$B$215,$F126) -> 0 | I126: =IF((G126<>"total")*(G126<>0),INDEX(PORTFOLIO!$H$17:$H$215,$F126),0) -> 0 | J126: =LARGE($I$57:$I$156,ROWS($J$57:$J126)) -> 0 | K126: 13
F127: 71 | G127: =INDEX(PORTFOLIO!$B$17:$B$215,$F127) -> 0 | I127: =IF((G127<>"total")*(G127<>0),INDEX(PORTFOLIO!$H$17:$H$215,$F127),0) -> 0 | J127: =LARGE($I$57:$I$156,ROWS($J$57:$J127)) -> 0 | K127: 13
F128: 72 | G128: =INDEX(PORTFOLIO!$B$17:$B$215,$F128) -> 0 | I128: =IF((G128<>"total")*(G128<>0),INDEX(PORTFOLIO!$H$17:$H$215,$F128),0) -> 0 | J128: =LARGE($I$57:$I$156,ROWS($J$57:$J128)) -> 0 | K128: 13
F129: 73 | G129: =INDEX(PORTFOLIO!$B$17:$B$215,$F129) -> 0 | I129: =IF((G129<>"total")*(G129<>0),INDEX(PORTFOLIO!$H$17:$H$215,$F129),0) -> 0 | J129: =LARGE($I$57:$I$156,ROWS($J$57:$J129)) -> 0 | K129: 13
F130: 74 | G130: =INDEX(PORTFOLIO!$B$17:$B$215,$F130) -> 0 | I130: =IF((G130<>"total")*(G130<>0),INDEX(PORTFOLIO!$H$17:$H$215,$F130),0) -> 0 | J130: =LARGE($I$57:$I$156,ROWS($J$57:$J130)) -> 0 | K130: 13
F131: 75 | G131: =INDEX(PORTFOLIO!$B$17:$B$215,$F131) -> 0 | I131: =IF((G131<>"total")*(G131<>0),INDEX(PORTFOLIO!$H$17:$H$215,$F131),0) -> 0 | J131: =LARGE($I$57:$I$156,ROWS($J$57:$J131)) -> 0 | K131: 13
F132: 76 | G132: =INDEX(PORTFOLIO!$B$17:$B$215,$F132) -> 0 | I132: =IF((G132<>"total")*(G132<>0),INDEX(PORTFOLIO!$H$17:$H$215,$F132),0) -> 0 | J132: =LARGE($I$57:$I$156,ROWS($J$57:$J132)) -> 0 | K132: 13
F133: 77 | G133: =INDEX(PORTFOLIO!$B$17:$B$215,$F133) -> 0 | I133: =IF((G133<>"total")*(G133<>0),INDEX(PORTFOLIO!$H$17:$H$215,$F133),0) -> 0 | J133: =LARGE($I$57:$I$156,ROWS($J$57:$J133)) -> 0 | K133: 13
F134: 78 | G134: =INDEX(PORTFOLIO!$B$17:$B$215,$F134) -> 0 | I134: =IF((G134<>"total")*(G134<>0),INDEX(PORTFOLIO!$H$17:$H$215,$F134),0) -> 0 | J134: =LARGE($I$57:$I$156,ROWS($J$57:$J134)) -> 0 | K134: 13
F135: 79 | G135: =INDEX(PORTFOLIO!$B$17:$B$215,$F135) -> 0 | I135: =IF((G135<>"total")*(G135<>0),INDEX(PORTFOLIO!$H$17:$H$215,$F135),0) -> 0 | J135: =LARGE($I$57:$I$156,ROWS($J$57:$J135)) -> 0 | K135: 13
F136: 80 | G136: =INDEX(PORTFOLIO!$B$17:$B$215,$F136) -> 0 | I136: =IF((G136<>"total")*(G136<>0),INDEX(PORTFOLIO!$H$17:$H$215,$F136),0) -> 0 | J136: =LARGE($I$57:$I$156,ROWS($J$57:$J136)) -> 0 | K136: 13
F137: 81 | G137: =INDEX(PORTFOLIO!$B$17:$B$215,$F137) -> 0 | I137: =IF((G137<>"total")*(G137<>0),INDEX(PORTFOLIO!$H$17:$H$215,$F137),0) -> 0 | J137: =LARGE($I$57:$I$156,ROWS($J$57:$J137)) -> 0 | K137: 13
F138: 82 | G138: =INDEX(PORTFOLIO!$B$17:$B$215,$F138) -> 0 | I138: =IF((G138<>"total")*(G138<>0),INDEX(PORTFOLIO!$H$17:$H$215,$F138),0) -> 0 | J138: =LARGE($I$57:$I$156,ROWS($J$57:$J138)) -> 0 | K138: 13
F139: 83 | G139: =INDEX(PORTFOLIO!$B$17:$B$215,$F139) -> 0 | I139: =IF((G139<>"total")*(G139<>0),INDEX(PORTFOLIO!$H$17:$H$215,$F139),0) -> 0 | J139: =LARGE($I$57:$I$156,ROWS($J$57:$J139)) -> 0 | K139: 13
F140: 84 | G140: =INDEX(PORTFOLIO!$B$17:$B$215,$F140) -> 0 | I140: =IF((G140<>"total")*(G140<>0),INDEX(PORTFOLIO!$H$17:$H$215,$F140),0) -> 0 | J140: =LARGE($I$57:$I$156,ROWS($J$57:$J140)) -> 0 | K140: 13
F141: 85 | G141: =INDEX(PORTFOLIO!$B$17:$B$215,$F141) -> 0 | I141: =IF((G141<>"total")*(G141<>0),INDEX(PORTFOLIO!$H$17:$H$215,$F141),0) -> 0 | J141: =LARGE($I$57:$I$156,ROWS($J$57:$J141)) -> 0 | K141: 13
F142: 86 | G142: =INDEX(PORTFOLIO!$B$17:$B$215,$F142) -> 0 | I142: =IF((G142<>"total")*(G142<>0),INDEX(PORTFOLIO!$H$17:$H$215,$F142),0) -> 0 | J142: =LARGE($I$57:$I$156,ROWS($J$57:$J142)) -> 0 | K142: 13
F143: 87 | G143: =INDEX(PORTFOLIO!$B$17:$B$215,$F143) -> 0 | I143: =IF((G143<>"total")*(G143<>0),INDEX(PORTFOLIO!$H$17:$H$215,$F143),0) -> 0 | J143: =LARGE($I$57:$I$156,ROWS($J$57:$J143)) -> 0 | K143: 13
F144: 88 | G144: =INDEX(PORTFOLIO!$B$17:$B$215,$F144) -> 0 | I144: =IF((G144<>"total")*(G144<>0),INDEX(PORTFOLIO!$H$17:$H$215,$F144),0) -> 0 | J144: =LARGE($I$57:$I$156,ROWS($J$57:$J144)) -> 0 | K144: 13
F145: 89 | G145: =INDEX(PORTFOLIO!$B$17:$B$215,$F145) -> 0 | I145: =IF((G145<>"total")*(G145<>0),INDEX(PORTFOLIO!$H$17:$H$215,$F145),0) -> 0 | J145: =LARGE($I$57:$I$156,ROWS($J$57:$J145)) -> 0 | K145: 13
F146: 90 | G146: =INDEX(PORTFOLIO!$B$17:$B$215,$F146) -> 0 | I146: =IF((G146<>"total")*(G146<>0),INDEX(PORTFOLIO!$H$17:$H$215,$F146),0) -> 0 | J146: =LARGE($I$57:$I$156,ROWS($J$57:$J146)) -> 0 | K146: 13
F147: 91 | G147: =INDEX(PORTFOLIO!$B$17:$B$215,$F147) -> 0 | H147: =REPT(G147,(G147<>"total")*(G147<>0)) ->  | I147: =IF((G147<>"total")*(G147<>0),INDEX(PORTFOLIO!$H$17:$H$215,$F147),0) -> 0 | J147: =LARGE($I$57:$I$156,ROWS($J$57:$J147)) -> 0 | K147: 13
F148: 92 | G148: =INDEX(PORTFOLIO!$B$17:$B$215,$F148) -> 0 | H148: =REPT(G148,(G148<>"total")*(G148<>0)) ->  | I148: =IF((G148<>"total")*(G148<>0),INDEX(PORTFOLIO!$H$17:$H$215,$F148),0) -> 0 | J148: =LARGE($I$57:$I$156,ROWS($J$57:$J148)) -> 0 | K148: 13
F149: 93 | G149: =INDEX(PORTFOLIO!$B$17:$B$215,$F149) -> 0 | I149: =IF((G149<>"total")*(G149<>0),INDEX(PORTFOLIO!$H$17:$H$215,$F149),0) -> 0 | J149: =LARGE($I$57:$I$156,ROWS($J$57:$J149)) -> 0 | K149: 13
F150: 94 | G150: =INDEX(PORTFOLIO!$B$17:$B$215,$F150) -> 0 | I150: =IF((G150<>"total")*(G150<>0),INDEX(PORTFOLIO!$H$17:$H$215,$F150),0) -> 0 | J150: =LARGE($I$57:$I$156,ROWS($J$57:$J150)) -> 0 | K150: 13
F151: 95 | G151: =INDEX(PORTFOLIO!$B$17:$B$215,$F151) -> 0 | I151: =IF((G151<>"total")*(G151<>0),INDEX(PORTFOLIO!$H$17:$H$215,$F151),0) -> 0 | J151: =LARGE($I$57:$I$156,ROWS($J$57:$J151)) -> 0 | K151: 13
F152: 96 | G152: =INDEX(PORTFOLIO!$B$17:$B$215,$F152) -> 0 | I152: =IF((G152<>"total")*(G152<>0),INDEX(PORTFOLIO!$H$17:$H$215,$F152),0) -> 0 | J152: =LARGE($I$57:$I$156,ROWS($J$57:$J152)) -> 0 | K152: 13
F153: 97 | G153: =INDEX(PORTFOLIO!$B$17:$B$215,$F153) -> 0 | I153: =IF((G153<>"total")*(G153<>0),INDEX(PORTFOLIO!$H$17:$H$215,$F153),0) -> 0 | J153: =LARGE($I$57:$I$156,ROWS($J$57:$J153)) -> 0 | K153: 13
F154: 98 | G154: =INDEX(PORTFOLIO!$B$17:$B$215,$F154) -> 0 | I154: =IF((G154<>"total")*(G154<>0),INDEX(PORTFOLIO!$H$17:$H$215,$F154),0) -> 0 | J154: =LARGE($I$57:$I$156,ROWS($J$57:$J154)) -> 0 | K154: 13
F155: 99 | G155: =INDEX(PORTFOLIO!$B$17:$B$215,$F155) -> 0 | I155: =IF((G155<>"total")*(G155<>0),INDEX(PORTFOLIO!$H$17:$H$215,$F155),0) -> 0 | J155: =LARGE($I$57:$I$156,ROWS($J$57:$J155)) -> 0 | K155: 13
F156: 100 | G156: =INDEX(PORTFOLIO!$B$17:$B$215,$F156) -> 0 | I156: =IF((G156<>"total")*(G156<>0),INDEX(PORTFOLIO!$H$17:$H$215,$F156),0) -> 0 | J156: =LARGE($I$57:$I$156,ROWS($J$57:$J156)) -> 0 | K156: 13
